[Event "Titled Tuesday Blitz April 05 Late 2022"]
[White "Adewumi, Tanitoluwa"]
[Black "Koziorowicz, Michal"]
[WhiteFideId "30966396"]
[BlackFideId "21809194"]
[WhiteElo "2550"]
[BlackElo "2665"]
[Result "0-1"]
[Round "06"]
[TimeControl "180+1"]
[Date "2022.04.06"]
[WhiteClock "0:00:04"]
[BlackClock "0:01:32"]

1. e4 {[%clk 0:03:00]}  c5 {[%clk 0:03:00]} 2. Nf3 {[%clk 0:02:59]}  d6 {[%clk 0:03:00]} 3. d4 {[%clk 0:02:59]}  cxd4 {[%clk 0:03:01]} 4. Nxd4 {[%clk 0:02:54]}  Nf6 {[%clk 0:03:02]} 5. Nc3 {[%clk 0:02:43]}  g6 {[%clk 0:03:02]} 6. Be3 {[%clk 0:02:39]}  Bg7 {[%clk 0:03:03]} 7. Bc4 {[%clk 0:02:30]}  O-O {[%clk 0:03:03]} 8. f3 {[%clk 0:02:30]}  Nc6 {[%clk 0:03:03]} 9. O-O {[%clk 0:02:29]}  Bd7 {[%clk 0:03:03]} 10. Re1 {[%clk 0:02:27]}  Rc8 {[%clk 0:03:03]} 11. Bb3 {[%clk 0:02:20]}  Na5 {[%clk 0:03:03]} 12. Qd2 {[%clk 0:02:17]}  Nc4 {[%clk 0:03:01]} 13. Bxc4 {[%clk 0:02:17]}  Rxc4 {[%clk 0:03:02]} 14. Nb3 {[%clk 0:02:16]}  Re8 {[%clk 0:02:59]} 15. Rad1 {[%clk 0:02:15]}  a6 {[%clk 0:02:58]} 16. Bd4 {[%clk 0:01:57]}  b5 {[%clk 0:02:45]} 17. Nd5 {[%clk 0:01:53]}  Nxd5 {[%clk 0:02:38]} 18. exd5 {[%clk 0:01:33]}  Bxd4+ {[%clk 0:02:33]} 19. Nxd4 {[%clk 0:01:34]}  Qb6 {[%clk 0:02:33]} 20. c3 {[%clk 0:01:23]}  b4 {[%clk 0:02:24]} 21. Kh1 {[%clk 0:01:17]}  bxc3 {[%clk 0:02:23]} 22. bxc3 {[%clk 0:01:18]}  Qc5 {[%clk 0:02:23]} 23. Qg5 {[%clk 0:00:51]}  f6 {[%clk 0:02:17]} 24. Qh6 {[%clk 0:00:49]}  Rxc3 {[%clk 0:02:01]} 25. Nb3 {[%clk 0:00:32]}  Qf2 {[%clk 0:01:50]} 26. Rf1 {[%clk 0:00:24]}  Qxa2 {[%clk 0:01:50]} 27. Nd4 {[%clk 0:00:18]}  Qxd5 {[%clk 0:01:49]} 28. Ne2 {[%clk 0:00:19]}  Rd3 {[%clk 0:01:46]} 29. Rde1 {[%clk 0:00:14]}  Qg5 {[%clk 0:01:43]} 30. Qxg5 {[%clk 0:00:11]}  fxg5 {[%clk 0:01:44]} 31. Ng3 {[%clk 0:00:10]}  a5 {[%clk 0:01:34]} 32. Ne4 {[%clk 0:00:10]}  h6 {[%clk 0:01:34]} 33. f4 {[%clk 0:00:04]}  gxf4 {[%clk 0:01:32]} 34. Rxf4 {[%clk 0:00:05]}  Rf8 {[%clk 0:01:31]} 35. Rxf8+ {[%clk 0:00:05]}  Kxf8 {[%clk 0:01:32]} 36. Rc1 {[%clk 0:00:04]}  a4 {[%clk 0:01:32]} 0-1


[Site "https://www.chess.com"]

[Event "Titled Tuesday Blitz April 05 Late 2022"]
[White "Almagro Mazariegos, Sebastian"]
[Black "Sadovsky, Artem"]
[WhiteFideId "2221640"]
[BlackFideId "4155840"]
[WhiteElo "2273"]
[BlackElo "2314"]
[Result "1-0"]
[Round "06"]
[TimeControl "180+1"]
[Date "2022.04.06"]
[WhiteClock "0:00:03"]
[BlackClock "0:00:27"]

1. e4 {[%clk 0:03:00]}  e5 {[%clk 0:02:54]} 2. Nf3 {[%clk 0:03:00]}  Qf6 {[%clk 0:02:47]} 3. d4 {[%clk 0:02:59]}  exd4 {[%clk 0:02:46]} 4. Qxd4 {[%clk 0:02:59]}  Qxd4 {[%clk 0:02:45]} 5. Nxd4 {[%clk 0:02:59]}  a6 {[%clk 0:02:42]} 6. Bf4 {[%clk 0:02:57]}  d6 {[%clk 0:02:38]} 7. Nc3 {[%clk 0:02:57]}  Nf6 {[%clk 0:02:36]} 8. O-O-O {[%clk 0:02:52]}  Nbd7 {[%clk 0:02:35]} 9. f3 {[%clk 0:02:50]}  Be7 {[%clk 0:02:34]} 10. g4 {[%clk 0:02:50]}  O-O {[%clk 0:02:25]} 11. g5 {[%clk 0:02:50]}  Nh5 {[%clk 0:02:23]} 12. Be3 {[%clk 0:02:50]}  Nb6 {[%clk 0:02:16]} 13. f4 {[%clk 0:02:34]}  Bg4 {[%clk 0:02:17]} 14. Rd2 {[%clk 0:02:33]}  c5 {[%clk 0:01:51]} 15. Nf5 {[%clk 0:02:32]}  Bxf5 {[%clk 0:01:45]} 16. exf5 {[%clk 0:02:33]}  f6 {[%clk 0:01:28]} 17. Be2 {[%clk 0:02:22]}  g6 {[%clk 0:01:29]} 18. fxg6 {[%clk 0:02:17]}  hxg6 {[%clk 0:01:28]} 19. gxf6 {[%clk 0:01:40]}  Nxf6 {[%clk 0:01:27]} 20. Rg1 {[%clk 0:01:32]}  Kf7 {[%clk 0:01:27]} 21. b3 {[%clk 0:01:25]}  Rh8 {[%clk 0:01:22]} 22. Bf3 {[%clk 0:01:25]}  d5 {[%clk 0:01:08]} 23. Nxd5 {[%clk 0:01:15]}  Nbxd5 {[%clk 0:01:09]} 24. Bxd5+ {[%clk 0:01:15]}  Nxd5 {[%clk 0:01:09]} 25. Rxd5 {[%clk 0:01:15]}  Rxh2 {[%clk 0:01:10]} 26. Bxc5 {[%clk 0:01:14]}  Bxc5 {[%clk 0:01:11]} 27. Rxc5 {[%clk 0:01:14]}  Re8 {[%clk 0:01:12]} 28. Rc7+ {[%clk 0:01:11]}  Kf6 {[%clk 0:01:13]} 29. Rxb7 {[%clk 0:01:10]}  Rc8 {[%clk 0:01:13]} 30. Rb6+ {[%clk 0:00:44]}  Kf5 {[%clk 0:01:13]} 31. c4 {[%clk 0:00:18]}  Rxa2 {[%clk 0:01:14]} 32. Rgxg6 {[%clk 0:00:17]}  Rh8 {[%clk 0:01:08]} 33. Rgf6+ {[%clk 0:00:15]}  Ke4 {[%clk 0:01:08]} 34. Rh6 {[%clk 0:00:16]}  Rg8 {[%clk 0:01:06]} 35. Rhg6 {[%clk 0:00:16]}  Rh8 {[%clk 0:01:05]} 36. Rh6 {[%clk 0:00:16]}  Rd8 {[%clk 0:00:58]} 37. Rxa6 {[%clk 0:00:13]}  Rad2 {[%clk 0:00:55]} 38. Rh1 {[%clk 0:00:10]}  Kf3 {[%clk 0:00:39]} 39. f5 {[%clk 0:00:07]}  Kg2 {[%clk 0:00:39]} 40. Re1 {[%clk 0:00:07]}  Kf2 {[%clk 0:00:39]} 41. Rh1 {[%clk 0:00:06]}  Kg2 {[%clk 0:00:40]} 42. Rah6 {[%clk 0:00:06]}  R2d3 {[%clk 0:00:36]} 43. R1h2+ {[%clk 0:00:05]}  Kf1 {[%clk 0:00:36]} 44. R2h3 {[%clk 0:00:04]}  Rd1+ {[%clk 0:00:32]} 45. Kb2 {[%clk 0:00:05]}  R8d2+ {[%clk 0:00:31]} 46. Kc3 {[%clk 0:00:05]}  Rg2 {[%clk 0:00:22]} 47. Rh1+ {[%clk 0:00:05]}  Ke2 {[%clk 0:00:22]} 48. Rxd1 {[%clk 0:00:05]}  Kxd1 {[%clk 0:00:23]} 49. f6 {[%clk 0:00:05]}  Rc2+ {[%clk 0:00:23]} 50. Kb4 {[%clk 0:00:05]}  Rh2 {[%clk 0:00:24]} 51. Rxh2 {[%clk 0:00:04]}  Ke1 {[%clk 0:00:24]} 52. f7 {[%clk 0:00:03]}  Kf1 {[%clk 0:00:25]} 53. Rh7 {[%clk 0:00:03]}  Kg1 {[%clk 0:00:25]} 54. f8=Q {[%clk 0:00:03]}  Kg2 {[%clk 0:00:26]} 55. Qf7 {[%clk 0:00:03]}  Kg3 {[%clk 0:00:27]} 56. Rg7+ {[%clk 0:00:03]}  Kh4 {[%clk 0:00:26]} 57. Qf8 {[%clk 0:00:03]}  Kh5 {[%clk 0:00:27]} 58. Qh8# {[%clk 0:00:03]} 1-0


[Site "https://www.chess.com"]

[Event "Titled Tuesday Blitz April 05 Late 2022"]
[White "Babazada, Khazar"]
[Black "Vasquez Schroeder, Rodrigo"]
[WhiteFideId "13413554"]
[BlackFideId "3400042"]
[WhiteElo "2406"]
[BlackElo "2561"]
[Result "0-1"]
[Round "06"]
[TimeControl "180+1"]
[Date "2022.04.05"]
[WhiteClock "0:00:05"]
[BlackClock "0:00:44"]

1. Nf3 {[%clk 0:03:00]}  c5 {[%clk 0:02:59]} 2. g3 {[%clk 0:03:00]}  b6 {[%clk 0:03:00]} 3. Bg2 {[%clk 0:02:58]}  Bb7 {[%clk 0:03:00]} 4. O-O {[%clk 0:02:58]}  g6 {[%clk 0:03:01]} 5. d3 {[%clk 0:02:57]}  Bg7 {[%clk 0:03:01]} 6. Nc3 {[%clk 0:02:57]}  Nc6 {[%clk 0:03:00]} 7. e4 {[%clk 0:02:57]}  d6 {[%clk 0:03:00]} 8. Be3 {[%clk 0:02:57]}  Nf6 {[%clk 0:02:57]} 9. h3 {[%clk 0:02:56]}  Qd7 {[%clk 0:02:51]} 10. Qd2 {[%clk 0:02:53]}  O-O {[%clk 0:02:47]} 11. Rae1 {[%clk 0:02:51]}  e5 {[%clk 0:02:47]} 12. Bh6 {[%clk 0:02:43]}  Rae8 {[%clk 0:02:44]} 13. Bxg7 {[%clk 0:02:37]}  Kxg7 {[%clk 0:02:45]} 14. Nh4 {[%clk 0:02:37]}  Nh5 {[%clk 0:02:32]} 15. Nd1 {[%clk 0:02:11]}  Qd8 {[%clk 0:02:24]} 16. Ne3 {[%clk 0:01:58]}  Kh8 {[%clk 0:02:21]} 17. c3 {[%clk 0:01:53]}  Ba6 {[%clk 0:02:04]} 18. Nd5 {[%clk 0:01:39]}  Ne7 {[%clk 0:01:57]} 19. Ne3 {[%clk 0:01:34]}  Ng8 {[%clk 0:01:53]} 20. Nf3 {[%clk 0:01:16]}  Ngf6 {[%clk 0:01:50]} 21. Rd1 {[%clk 0:01:05]}  Ng7 {[%clk 0:01:36]} 22. Rfe1 {[%clk 0:01:05]}  Ne6 {[%clk 0:01:36]} 23. h4 {[%clk 0:01:01]}  Bb7 {[%clk 0:01:30]} 24. Ng5 {[%clk 0:01:01]}  Nxg5 {[%clk 0:01:25]} 25. hxg5 {[%clk 0:01:02]}  Nh5 {[%clk 0:01:26]} 26. Ng4 {[%clk 0:00:59]}  Bc8 {[%clk 0:01:25]} 27. Bf3 {[%clk 0:00:59]}  f6 {[%clk 0:01:23]} 28. gxf6 {[%clk 0:00:34]}  Nxf6 {[%clk 0:01:16]} 29. Nh2 {[%clk 0:00:34]}  Kg7 {[%clk 0:01:15]} 30. d4 {[%clk 0:00:33]}  Qe7 {[%clk 0:01:10]} 31. Bg2 {[%clk 0:00:30]}  Ng4 {[%clk 0:01:05]} 32. Nxg4 {[%clk 0:00:26]}  Bxg4 {[%clk 0:01:05]} 33. Rc1 {[%clk 0:00:27]}  Rf7 {[%clk 0:01:00]} 34. Rf1 {[%clk 0:00:16]}  Ref8 {[%clk 0:00:59]} 35. Qe3 {[%clk 0:00:15]}  Bf3 {[%clk 0:01:00]} 36. Bxf3 {[%clk 0:00:13]}  Rxf3 {[%clk 0:00:59]} 37. Qe2 {[%clk 0:00:13]}  Qg5 {[%clk 0:00:56]} 38. Kg2 {[%clk 0:00:11]}  Qg4 {[%clk 0:00:55]} 39. Rce1 {[%clk 0:00:10]}  cxd4 {[%clk 0:00:50]} 40. cxd4 {[%clk 0:00:09]}  exd4 {[%clk 0:00:51]} 41. Qc4 {[%clk 0:00:08]}  d3 {[%clk 0:00:46]} 42. Qd4+ {[%clk 0:00:07]}  R8f6 {[%clk 0:00:45]} 43. e5 {[%clk 0:00:05]}  Qxd4 {[%clk 0:00:44]} 0-1


[Site "https://www.chess.com"]

[Event "Titled Tuesday Blitz April 05 Late 2022"]
[White "Bachmann, Axel"]
[Black "Fishbein, Alexander"]
[WhiteFideId "3700488"]
[BlackFideId "2000377"]
[WhiteElo "2529"]
[BlackElo "2668"]
[Result "0-1"]
[Round "06"]
[TimeControl "180+1"]
[Date "2022.04.06"]
[WhiteClock "0:00:07"]
[BlackClock "0:01:19"]

1. d4 {[%clk 0:02:58]}  Nf6 {[%clk 0:02:59]} 2. g3 {[%clk 0:02:54]}  g6 {[%clk 0:02:57]} 3. Bg2 {[%clk 0:02:54]}  Bg7 {[%clk 0:02:57]} 4. e4 {[%clk 0:02:54]}  d6 {[%clk 0:02:58]} 5. Ne2 {[%clk 0:02:55]}  O-O {[%clk 0:02:58]} 6. O-O {[%clk 0:02:55]}  Nc6 {[%clk 0:02:56]} 7. Nbc3 {[%clk 0:02:56]}  e5 {[%clk 0:02:56]} 8. dxe5 {[%clk 0:02:56]}  dxe5 {[%clk 0:02:51]} 9. Bg5 {[%clk 0:02:57]}  Be6 {[%clk 0:02:50]} 10. Nd5 {[%clk 0:02:56]}  Bxd5 {[%clk 0:02:48]} 11. exd5 {[%clk 0:02:57]}  Ne7 {[%clk 0:02:46]} 12. c4 {[%clk 0:02:57]}  h6 {[%clk 0:02:43]} 13. Bxf6 {[%clk 0:02:58]}  Bxf6 {[%clk 0:02:42]} 14. Nc3 {[%clk 0:02:58]}  Bg7 {[%clk 0:02:39]} 15. c5 {[%clk 0:02:55]}  Nf5 {[%clk 0:02:37]} 16. Rc1 {[%clk 0:02:50]}  Qe7 {[%clk 0:02:33]} 17. b4 {[%clk 0:02:38]}  a5 {[%clk 0:02:32]} 18. a3 {[%clk 0:02:36]}  axb4 {[%clk 0:02:32]} 19. axb4 {[%clk 0:02:37]}  Rfd8 {[%clk 0:02:29]} 20. Ne2 {[%clk 0:02:20]}  e4 {[%clk 0:02:27]} 21. Qc2 {[%clk 0:02:08]}  e3 {[%clk 0:02:05]} 22. f4 {[%clk 0:01:50]}  Nd4 {[%clk 0:02:03]} 23. Qd3 {[%clk 0:01:40]}  Ra2 {[%clk 0:01:54]} 24. Rfe1 {[%clk 0:01:19]}  Rd2 {[%clk 0:01:51]} 25. Qc4 {[%clk 0:01:08]}  Ra8 {[%clk 0:01:42]} 26. Nxd4 {[%clk 0:00:54]}  Bxd4 {[%clk 0:01:40]} 27. Re2 {[%clk 0:00:48]}  Raa2 {[%clk 0:01:35]} 28. Rce1 {[%clk 0:00:38]}  Rxe2 {[%clk 0:01:24]} 29. Rxe2 {[%clk 0:00:37]}  Ra1+ {[%clk 0:01:23]} 30. Bf1 {[%clk 0:00:32]}  Qe4 {[%clk 0:01:22]} 31. d6 {[%clk 0:00:10]}  Rxf1+ {[%clk 0:01:19]} 32. Kxf1 {[%clk 0:00:07]}  Qh1# {[%clk 0:01:19]} 0-1


[Site "https://www.chess.com"]

[Event "Titled Tuesday Blitz April 05 Late 2022"]
[White "Baker, Chris W"]
[Black "Janturin, Artur"]
[WhiteFideId "401676"]
[BlackFideId "4130022"]
[WhiteElo "2144"]
[BlackElo "2341"]
[Result "0-1"]
[Round "06"]
[TimeControl "180+1"]
[Date "2022.04.06"]
[WhiteClock "0:00:14"]
[BlackClock "0:00:11"]

1. e4 {[%clk 0:03:00]}  a6 {[%clk 0:02:58]} 2. d4 {[%clk 0:02:59]}  b5 {[%clk 0:02:58]} 3. Bd3 {[%clk 0:02:59]}  Bb7 {[%clk 0:02:58]} 4. Nf3 {[%clk 0:02:59]}  e6 {[%clk 0:02:57]} 5. O-O {[%clk 0:02:58]}  Nf6 {[%clk 0:02:56]} 6. Re1 {[%clk 0:02:57]}  c5 {[%clk 0:02:52]} 7. c3 {[%clk 0:02:56]}  Be7 {[%clk 0:02:51]} 8. Nbd2 {[%clk 0:02:48]}  cxd4 {[%clk 0:02:50]} 9. cxd4 {[%clk 0:02:46]}  Nc6 {[%clk 0:02:51]} 10. a3 {[%clk 0:02:44]}  O-O {[%clk 0:02:50]} 11. d5 {[%clk 0:02:40]}  exd5 {[%clk 0:02:42]} 12. e5 {[%clk 0:02:30]}  Ne8 {[%clk 0:02:36]} 13. Nb3 {[%clk 0:02:20]}  Nc7 {[%clk 0:02:26]} 14. Nbd4 {[%clk 0:02:16]}  g6 {[%clk 0:01:59]} 15. Bh6 {[%clk 0:02:11]}  Re8 {[%clk 0:01:59]} 16. Rc1 {[%clk 0:01:55]}  Ne6 {[%clk 0:01:59]} 17. Bb1 {[%clk 0:01:48]}  Qb6 {[%clk 0:01:50]} 18. Be3 {[%clk 0:01:40]}  Qa5 {[%clk 0:01:40]} 19. Qd3 {[%clk 0:01:22]}  Rac8 {[%clk 0:01:35]} 20. b4 {[%clk 0:01:13]}  Qd8 {[%clk 0:01:18]} 21. Nb3 {[%clk 0:01:13]}  d6 {[%clk 0:01:09]} 22. exd6 {[%clk 0:01:08]}  Qxd6 {[%clk 0:00:58]} 23. Bc5 {[%clk 0:01:03]}  Qd7 {[%clk 0:00:51]} 24. Bxe7 {[%clk 0:00:52]}  Rxe7 {[%clk 0:00:50]} 25. Nfd4 {[%clk 0:00:48]}  Nexd4 {[%clk 0:00:42]} 26. Nxd4 {[%clk 0:00:47]}  Nxd4 {[%clk 0:00:38]} 27. Qxd4 {[%clk 0:00:46]}  Rc4 {[%clk 0:00:31]} 28. Qa7 {[%clk 0:00:33]}  Qc7 {[%clk 0:00:23]} 29. Rcd1 {[%clk 0:00:30]}  d4 {[%clk 0:00:21]} 30. Bd3 {[%clk 0:00:29]}  Rc3 {[%clk 0:00:20]} 31. Rxe7 {[%clk 0:00:28]}  Qxe7 {[%clk 0:00:20]} 32. Qxd4 {[%clk 0:00:27]}  Rc7 {[%clk 0:00:18]} 33. Bf1 {[%clk 0:00:25]}  Bc6 {[%clk 0:00:15]} 34. Qb6 {[%clk 0:00:24]}  Be4 {[%clk 0:00:14]} 35. Qxa6 {[%clk 0:00:22]}  Bc2 {[%clk 0:00:12]} 36. Rc1 {[%clk 0:00:17]}  Ba4 {[%clk 0:00:12]} 37. Qa8+ {[%clk 0:00:16]}  Kg7 {[%clk 0:00:11]} 38. Qf3 {[%clk 0:00:16]}  Rxc1 {[%clk 0:00:11]} 39. h4 {[%clk 0:00:14]}  Qf6 {[%clk 0:00:11]} 0-1


[Site "https://www.chess.com"]

[Event "Titled Tuesday Blitz April 05 Late 2022"]
[White "Barbosa, Evandro Amorim"]
[Black "Mikhalsky, Vladimir"]
[WhiteFideId "2115824"]
[BlackFideId "14144352"]
[WhiteElo "2663"]
[BlackElo "2524"]
[Result "1-0"]
[Round "06"]
[TimeControl "180+1"]
[Date "2022.04.06"]
[WhiteClock "0:00:11"]
[BlackClock "0:00:21"]

1. e4 {[%clk 0:03:00]}  g6 {[%clk 0:02:59]} 2. d4 {[%clk 0:03:00]}  Bg7 {[%clk 0:03:00]} 3. Nc3 {[%clk 0:03:00]}  d6 {[%clk 0:03:00]} 4. Be3 {[%clk 0:02:58]}  Nd7 {[%clk 0:03:00]} 5. Nf3 {[%clk 0:02:55]}  a6 {[%clk 0:02:59]} 6. a4 {[%clk 0:02:55]}  b6 {[%clk 0:02:59]} 7. Bc4 {[%clk 0:02:54]}  e6 {[%clk 0:02:58]} 8. Qd2 {[%clk 0:02:52]}  Bb7 {[%clk 0:02:57]} 9. h3 {[%clk 0:02:49]}  Ngf6 {[%clk 0:02:52]} 10. Bd3 {[%clk 0:02:47]}  e5 {[%clk 0:02:44]} 11. Bh6 {[%clk 0:02:43]}  Bxh6 {[%clk 0:02:40]} 12. Qxh6 {[%clk 0:02:44]}  exd4 {[%clk 0:02:36]} 13. Nxd4 {[%clk 0:02:44]}  Qe7 {[%clk 0:02:31]} 14. O-O {[%clk 0:02:39]}  O-O-O {[%clk 0:02:30]} 15. Rfe1 {[%clk 0:02:37]}  Ne5 {[%clk 0:02:25]} 16. Bf1 {[%clk 0:02:35]}  c5 {[%clk 0:02:14]} 17. Nb3 {[%clk 0:02:27]}  Kb8 {[%clk 0:02:12]} 18. f4 {[%clk 0:02:07]}  Ned7 {[%clk 0:02:09]} 19. Rad1 {[%clk 0:01:51]}  Nxe4 {[%clk 0:02:02]} 20. Nxe4 {[%clk 0:01:49]}  Bxe4 {[%clk 0:02:02]} 21. Nd2 {[%clk 0:01:46]}  d5 {[%clk 0:01:45]} 22. Bxa6 {[%clk 0:01:31]}  f5 {[%clk 0:01:42]} 23. Nf3 {[%clk 0:01:12]}  Ka7 {[%clk 0:01:40]} 24. Bb5 {[%clk 0:01:12]}  Qf6 {[%clk 0:01:28]} 25. Bxd7 {[%clk 0:00:51]}  Rxd7 {[%clk 0:01:27]} 26. Ne5 {[%clk 0:00:51]}  Re7 {[%clk 0:01:26]} 27. Ra1 {[%clk 0:00:37]}  Rxe5 {[%clk 0:01:22]} 28. fxe5 {[%clk 0:00:37]}  Qxe5 {[%clk 0:01:22]} 29. a5 {[%clk 0:00:37]}  b5 {[%clk 0:01:22]} 30. Qg5 {[%clk 0:00:36]}  Re8 {[%clk 0:01:12]} 31. a6 {[%clk 0:00:35]}  Qxb2 {[%clk 0:01:08]} 32. Qh4 {[%clk 0:00:28]}  Qd4+ {[%clk 0:01:03]} 33. Kh1 {[%clk 0:00:23]}  Bxg2+ {[%clk 0:00:55]} 34. Kxg2 {[%clk 0:00:23]}  Qxh4 {[%clk 0:00:54]} 35. Rxe8 {[%clk 0:00:24]}  Qg5+ {[%clk 0:00:54]} 36. Kf3 {[%clk 0:00:21]}  f4 {[%clk 0:00:50]} 37. Rf8 {[%clk 0:00:11]}  Qg3+ {[%clk 0:00:48]} 38. Ke2 {[%clk 0:00:12]}  Qe3+ {[%clk 0:00:47]} 39. Kf1 {[%clk 0:00:11]}  Qxh3+ {[%clk 0:00:45]} 40. Kf2 {[%clk 0:00:11]}  Qg3+ {[%clk 0:00:45]} 41. Ke2 {[%clk 0:00:11]}  Qe3+ {[%clk 0:00:43]} 42. Kf1 {[%clk 0:00:11]}  Qh3+ {[%clk 0:00:38]} 43. Kf2 {[%clk 0:00:11]}  Qe6 {[%clk 0:00:35]} 44. Re1 {[%clk 0:00:09]}  Qd6 {[%clk 0:00:33]} 45. Rfe8 {[%clk 0:00:05]}  c4 {[%clk 0:00:24]} 46. R1e7+ {[%clk 0:00:05]}  Kxa6 {[%clk 0:00:21]} 47. Re6 {[%clk 0:00:05]}  Qxe6 {[%clk 0:00:22]} 48. Rxe6+ {[%clk 0:00:06]}  Ka5 {[%clk 0:00:22]} 49. Rd6 {[%clk 0:00:05]}  Kb4 {[%clk 0:00:20]} 50. Rxd5 {[%clk 0:00:06]}  h6 {[%clk 0:00:21]} 51. Kf3 {[%clk 0:00:05]}  g5 {[%clk 0:00:21]} 52. Ke4 {[%clk 0:00:04]}  Kc3 {[%clk 0:00:21]} 53. Rxb5 {[%clk 0:00:05]}  Kxc2 {[%clk 0:00:22]} 54. Rc5 {[%clk 0:00:05]}  Kb3 {[%clk 0:00:21]} 55. Kd4 {[%clk 0:00:05]}  f3 {[%clk 0:00:22]} 56. Rxc4 {[%clk 0:00:05]}  g4 {[%clk 0:00:22]} 57. Rc1 {[%clk 0:00:05]}  g3 {[%clk 0:00:22]} 58. Ke3 {[%clk 0:00:06]}  f2 {[%clk 0:00:21]} 59. Kf3 {[%clk 0:00:06]}  h5 {[%clk 0:00:21]} 60. Kxg3 {[%clk 0:00:06]}  h4+ {[%clk 0:00:20]} 61. Kxf2 {[%clk 0:00:06]}  h3 {[%clk 0:00:21]} 62. Rh1 {[%clk 0:00:07]}  Kc3 {[%clk 0:00:20]} 63. Rxh3+ {[%clk 0:00:08]}  Kd4 {[%clk 0:00:21]} 64. Re3 {[%clk 0:00:08]}  Kd5 {[%clk 0:00:20]} 65. Kf3 {[%clk 0:00:09]}  Kd4 {[%clk 0:00:20]} 66. Kf4 {[%clk 0:00:10]}  Kd5 {[%clk 0:00:21]} 67. Re4 {[%clk 0:00:10]}  Kd6 {[%clk 0:00:21]} 68. Kf5 {[%clk 0:00:11]} 1-0


[Site "https://www.chess.com"]

[Event "Titled Tuesday Blitz April 05 Late 2022"]
[White "Bas Mas, Jose Joaquin"]
[Black "Danilov, Vladimir"]
[WhiteFideId "22219064"]
[BlackFideId "1203398"]
[WhiteElo "2319"]
[BlackElo "2524"]
[Result "1/2-1/2"]
[Round "06"]
[TimeControl "180+1"]
[Date "2022.04.06"]
[WhiteClock "0:00:32"]
[BlackClock "0:01:40"]

1. e4 {[%clk 0:03:00]}  e5 {[%clk 0:02:59]} 2. Nc3 {[%clk 0:03:01]}  Nc6 {[%clk 0:03:00]} 3. g3 {[%clk 0:03:01]}  Nf6 {[%clk 0:02:59]} 4. Bg2 {[%clk 0:03:01]}  Bc5 {[%clk 0:02:59]} 5. Nge2 {[%clk 0:03:00]}  d6 {[%clk 0:02:59]} 6. h3 {[%clk 0:03:00]}  O-O {[%clk 0:03:00]} 7. O-O {[%clk 0:02:58]}  h6 {[%clk 0:02:59]} 8. d3 {[%clk 0:02:59]}  Nh7 {[%clk 0:02:59]} 9. Na4 {[%clk 0:02:58]}  Bb6 {[%clk 0:02:58]} 10. Nxb6 {[%clk 0:02:58]}  axb6 {[%clk 0:02:59]} 11. d4 {[%clk 0:02:43]}  exd4 {[%clk 0:02:46]} 12. Nxd4 {[%clk 0:02:43]}  Nxd4 {[%clk 0:02:46]} 13. Qxd4 {[%clk 0:02:43]}  Qf6 {[%clk 0:02:45]} 14. Be3 {[%clk 0:02:38]}  Qxd4 {[%clk 0:02:45]} 15. Bxd4 {[%clk 0:02:38]}  Re8 {[%clk 0:02:45]} 16. f4 {[%clk 0:02:32]}  f6 {[%clk 0:02:44]} 17. Rfe1 {[%clk 0:02:26]}  Be6 {[%clk 0:02:18]} 18. a3 {[%clk 0:02:25]}  Rad8 {[%clk 0:02:13]} 19. Bc3 {[%clk 0:02:20]}  c5 {[%clk 0:02:11]} 20. Rad1 {[%clk 0:02:16]}  Kf7 {[%clk 0:02:04]} 21. Rd2 {[%clk 0:02:05]}  Nf8 {[%clk 0:02:04]} 22. Red1 {[%clk 0:02:05]}  Ke7 {[%clk 0:02:05]} 23. e5 {[%clk 0:01:54]}  dxe5 {[%clk 0:02:04]} 24. Rxd8 {[%clk 0:01:53]}  Rxd8 {[%clk 0:02:04]} 25. Rxd8 {[%clk 0:01:54]}  Kxd8 {[%clk 0:02:05]} 26. fxe5 {[%clk 0:01:54]}  fxe5 {[%clk 0:02:03]} 27. Bxe5 {[%clk 0:01:54]}  g6 {[%clk 0:01:57]} 28. Bg7 {[%clk 0:01:49]}  Nd7 {[%clk 0:01:57]} 29. Bxh6 {[%clk 0:01:47]}  Bf5 {[%clk 0:01:57]} 30. c3 {[%clk 0:01:40]}  Kc8 {[%clk 0:01:57]} 31. g4 {[%clk 0:01:38]}  Bc2 {[%clk 0:01:57]} 32. Bf4 {[%clk 0:01:36]}  Nf6 {[%clk 0:01:56]} 33. Kf2 {[%clk 0:01:29]}  b5 {[%clk 0:01:35]} 34. Be5 {[%clk 0:01:28]}  Nd7 {[%clk 0:01:32]} 35. Bd6 {[%clk 0:01:25]}  c4 {[%clk 0:01:32]} 36. h4 {[%clk 0:01:20]}  Nf6 {[%clk 0:01:32]} 37. g5 {[%clk 0:00:53]}  Ne4+ {[%clk 0:01:31]} 38. Bxe4 {[%clk 0:00:53]}  Bxe4 {[%clk 0:01:32]} 39. Ke3 {[%clk 0:00:53]}  Bb1 {[%clk 0:01:30]} 40. Kd4 {[%clk 0:00:53]}  Kd7 {[%clk 0:01:30]} 41. Bb8 {[%clk 0:00:49]}  Kc6 {[%clk 0:01:21]} 42. Bf4 {[%clk 0:00:42]}  Bc2 {[%clk 0:01:21]} 43. Ke5 {[%clk 0:00:40]}  Bb1 {[%clk 0:01:20]} 44. Be3 {[%clk 0:00:40]}  Bc2 {[%clk 0:01:20]} 45. Kd4 {[%clk 0:00:40]}  Bb1 {[%clk 0:01:20]} 46. a4 {[%clk 0:00:40]}  Bc2 {[%clk 0:01:20]} 47. axb5+ {[%clk 0:00:39]}  Kxb5 {[%clk 0:01:20]} 48. Ke5 {[%clk 0:00:38]}  Ka4 {[%clk 0:01:19]} 49. Bc5 {[%clk 0:00:38]}  Kb3 {[%clk 0:01:20]} 50. Ba3 {[%clk 0:00:38]}  Bd1 {[%clk 0:01:20]} 51. Kf6 {[%clk 0:00:38]}  Bh5 {[%clk 0:01:20]} 52. Kg7 {[%clk 0:00:38]}  b5 {[%clk 0:01:21]} 53. Kh6 {[%clk 0:00:37]}  b4 {[%clk 0:01:21]} 54. cxb4 {[%clk 0:00:28]}  Ka4 {[%clk 0:01:21]} 55. Kg7 {[%clk 0:00:26]}  Kb5 {[%clk 0:01:22]} 56. Kf6 {[%clk 0:00:26]}  Ka4 {[%clk 0:01:22]} 57. Ke5 {[%clk 0:00:26]}  Kb5 {[%clk 0:01:23]} 58. Kd4 {[%clk 0:00:26]}  Bd1 {[%clk 0:01:23]} 59. Kc3 {[%clk 0:00:24]}  Bh5 {[%clk 0:01:22]} 60. b3 {[%clk 0:00:23]}  cxb3 {[%clk 0:01:23]} 61. Kxb3 {[%clk 0:00:24]}  Bg4 {[%clk 0:01:24]} 62. Bc1 {[%clk 0:00:25]}  Bh5 {[%clk 0:01:25]} 63. Be3 {[%clk 0:00:24]}  Bg4 {[%clk 0:01:25]} 64. Bc5 {[%clk 0:00:24]}  Bh5 {[%clk 0:01:26]} 65. Kc3 {[%clk 0:00:25]}  Bg4 {[%clk 0:01:27]} 66. Kd4 {[%clk 0:00:26]}  Bh5 {[%clk 0:01:28]} 67. Ke5 {[%clk 0:00:26]}  Bg4 {[%clk 0:01:29]} 68. Kf4 {[%clk 0:00:27]}  Bh5 {[%clk 0:01:30]} 69. Ke4 {[%clk 0:00:27]}  Ka4 {[%clk 0:01:30]} 70. Kf4 {[%clk 0:00:27]}  Kb5 {[%clk 0:01:31]} 71. Ke5 {[%clk 0:00:28]}  Ka4 {[%clk 0:01:32]} 72. Kf6 {[%clk 0:00:28]}  Kb5 {[%clk 0:01:33]} 73. Ke7 {[%clk 0:00:29]}  Ka4 {[%clk 0:01:34]} 74. Kd6 {[%clk 0:00:29]}  Kb5 {[%clk 0:01:35]} 75. Kc7 {[%clk 0:00:30]}  Bg4 {[%clk 0:01:36]} 76. Kd6 {[%clk 0:00:30]}  Bh5 {[%clk 0:01:37]} 77. Ke7 {[%clk 0:00:30]}  Bg4 {[%clk 0:01:37]} 78. Kf8 {[%clk 0:00:31]}  Bh5 {[%clk 0:01:38]} 79. Kg7 {[%clk 0:00:31]}  Ka4 {[%clk 0:01:39]} 80. Kf6 {[%clk 0:00:32]}  Kb5 {[%clk 0:01:40]} 81. Ke7 {[%clk 0:00:32]} 1/2-1/2


[Site "https://www.chess.com"]